[Event "Late-Titled-Tuesday-Blitz-September-05-2023"]
[Site "Chess.com"]
[Date "2023.09.05"]
[Round "2"]
[White "Bobbybunny"]
[Black "Colombiano07"]
[Result "1/2-1/2"]
[WhiteElo "2201"]
[BlackElo "2438"]
[TimeControl "180+1"]
[EndTime "14:18:52 PDT"]
[Termination "Game drawn by stalemate"]

1. e4 {[%clk 0:02:51.5]} 1... c6 {[%clk 0:03:00.3]} 2. d4 {[%clk 0:02:49.1]}
2... d5 {[%clk 0:03:01.2]} 3. exd5 {[%clk 0:02:48.1]} 3... cxd5 {[%clk
0:03:02.1]} 4. Bd3 {[%clk 0:02:47.3]} 4... Nc6 {[%clk 0:03:02.5]} 5. c3 {[%clk
0:02:46.6]} 5... Nf6 {[%clk 0:03:03.2]} 6. h3 {[%clk 0:02:46.8]} 6... g6 {[%clk
0:03:01.5]} 7. Nf3 {[%clk 0:02:46.5]} 7... Bg7 {[%clk 0:03:02.4]} 8. O-O {[%clk
0:02:45.4]} 8... O-O {[%clk 0:03:03.3]} 9. Re1 {[%clk 0:02:44.8]} 9... Bf5
{[%clk 0:03:03.8]} 10. Bf1 {[%clk 0:02:43.6]} 10... Ne4 {[%clk 0:02:49.3]} 11.
Be3 {[%clk 0:02:29.6]} 11... Qb6 {[%clk 0:02:48.9]} 12. Qb3 {[%clk 0:02:26.7]}
12... Qxb3 {[%clk 0:02:08.2]} 13. axb3 {[%clk 0:02:25.3]} 13... a6 {[%clk
0:02:09.1]} 14. b4 {[%clk 0:02:23.7]} 14... Rad8 {[%clk 0:02:02.8]} 15. Nbd2
{[%clk 0:02:17.4]} 15... e5 {[%clk 0:02:01.2]} 16. Nb3 {[%clk 0:02:07.1]} 16...
Rfe8 {[%clk 0:01:52.4]} 17. b5 {[%clk 0:01:56.1]} 17... axb5 {[%clk 0:01:49.8]}
18. Bxb5 {[%clk 0:01:54.7]} 18... exd4 {[%clk 0:01:34.5]} 19. Nfxd4 {[%clk
0:01:52.9]} 19... Bd7 {[%clk 0:01:35]} 20. Bd3 {[%clk 0:01:37.2]} 20... Ne5
{[%clk 0:01:25.7]} 21. Bf1 {[%clk 0:01:29.6]} 21... Nc4 {[%clk 0:01:23.2]} 22.
Bf4 {[%clk 0:01:08.9]} 22... Nxb2 {[%clk 0:01:17.5]} 23. Ra7 {[%clk 0:01:05.9]}
23... Bc6 {[%clk 0:01:11]} 24. Nxc6 {[%clk 0:00:52.2]} 24... bxc6 {[%clk
0:01:11.9]} 25. Nd4 {[%clk 0:00:51.5]} 25... Nxc3 {[%clk 0:01:02.1]} 26. Rxe8+
{[%clk 0:00:48.4]} 26... Rxe8 {[%clk 0:01:03]} 27. Nxc6 {[%clk 0:00:47.8]} 27...
h5 {[%clk 0:00:50]} 28. g4 {[%clk 0:00:46.1]} 28... hxg4 {[%clk 0:00:48.3]} 29.
hxg4 {[%clk 0:00:45.8]} 29... d4 {[%clk 0:00:29]} 30. Kg2 {[%clk 0:00:35.4]}
30... Nd5 {[%clk 0:00:16.5]} 31. Bd2 {[%clk 0:00:30.3]} 31... Rc8 {[%clk
0:00:11.5]} 32. Ne7+ {[%clk 0:00:21.1]} 32... Nxe7 {[%clk 0:00:11.3]} 33. Rxe7
{[%clk 0:00:20.5]} 33... Nc4 {[%clk 0:00:10.8]} 34. Bf4 {[%clk 0:00:18.4]} 34...
Bf6 {[%clk 0:00:09.3]} 35. Rd7 {[%clk 0:00:18.3]} 35... Nb6 {[%clk 0:00:05.4]}
36. Rd6 {[%clk 0:00:16.6]} 36... g5 {[%clk 0:00:04.5]} 37. Rxf6 {[%clk
0:00:14.8]} 37... Nd5 {[%clk 0:00:03.6]} 38. Rf5 {[%clk 0:00:12.8]} 38... Nxf4+
{[%clk 0:00:03.7]} 39. Kf3 {[%clk 0:00:12.4]} 39... Ng6 {[%clk 0:00:03.7]} 40.
Rxg5 {[%clk 0:00:11.6]} 40... Rd8 {[%clk 0:00:04.6]} 41. Bd3 {[%clk 0:00:10.8]}
41... Kg7 {[%clk 0:00:04.4]} 42. Bxg6 {[%clk 0:00:10]} 42... fxg6 {[%clk
0:00:05.3]} 43. Ke2 {[%clk 0:00:09.9]} 43... Kf6 {[%clk 0:00:05.4]} 44. Rc5
{[%clk 0:00:08.5]} 44... Rd6 {[%clk 0:00:05.1]} 45. Kd3 {[%clk 0:00:08.4]} 45...
g5 {[%clk 0:00:05.5]} 46. f3 {[%clk 0:00:08.5]} 46... Kg6 {[%clk 0:00:05.5]} 47.
Rf5 {[%clk 0:00:09.1]} 47... Rd7 {[%clk 0:00:04.7]} 48. Re5 {[%clk 0:00:09.4]}
48... Rf7 {[%clk 0:00:04]} 49. Ke4 {[%clk 0:00:07.1]} 49... Rf4+ {[%clk
0:00:03.8]} 50. Kd3 {[%clk 0:00:04.2]} 50... Rxf3+ {[%clk 0:00:04.7]} 51. Kxd4
{[%clk 0:00:04.1]} 51... Rf4+ {[%clk 0:00:05.4]} 52. Re4 {[%clk 0:00:03.5]}
52... Kf6 {[%clk 0:00:04.9]} 53. Rxf4+ {[%clk 0:00:03]} 53... gxf4 {[%clk
0:00:05.8]} 54. Ke4 {[%clk 0:00:03.2]} 54... Kg5 {[%clk 0:00:03.5]} 55. Kf3
{[%clk 0:00:03.8]} 55... Kg6 {[%clk 0:00:04]} 56. Kxf4 {[%clk 0:00:04.3]} 56...
Kf6 {[%clk 0:00:04.6]} 57. g5+ {[%clk 0:00:04.8]} 57... Kg6 {[%clk 0:00:04.8]}
58. Kg4 {[%clk 0:00:05.5]} 58... Kg7 {[%clk 0:00:05.7]} 59. Kf5 {[%clk
0:00:05.6]} 59... Kf7 {[%clk 0:00:06.2]} 60. g6+ {[%clk 0:00:06.2]} 60... Kg7
{[%clk 0:00:06.8]} 61. Kg5 {[%clk 0:00:06.9]} 61... Kg8 {[%clk 0:00:07.7]} 62.
Kf6 {[%clk 0:00:07.3]} 62... Kf8 {[%clk 0:00:08.1]} 63. g7+ {[%clk 0:00:07.8]}
63... Kg8 {[%clk 0:00:08.8]} 64. Kg6 {[%clk 0:00:08.3]} 1/2-1/2

[Event "Late-Titled-Tuesday-Blitz-September-05-2023"]
[Site "Chess.com"]
[Date "2023.09.05"]
[Round "2"]
[White "mbojan"]
[Black "jup1978"]
[Result "1/2-1/2"]
[WhiteElo "2828"]
[BlackElo "2538"]
[TimeControl "180+1"]
[EndTime "14:18:53 PDT"]
[Termination "Game drawn by repetition"]

1. Nf3 {[%clk 0:03:00.9]} 1... d5 {[%clk 0:02:59.3]} 2. g3 {[%clk 0:03:01.5]}
2... Nd7 {[%clk 0:02:59.8]} 3. Bg2 {[%clk 0:03:01.5]} 3... e5 {[%clk 0:02:59.9]}
4. O-O {[%clk 0:03:02.3]} 4... Ngf6 {[%clk 0:02:59]} 5. d3 {[%clk 0:03:02.7]}
5... Bd6 {[%clk 0:02:58.4]} 6. c3 {[%clk 0:03:01.8]} 6... a5 {[%clk 0:02:57.1]}
7. Qc2 {[%clk 0:03:00.7]} 7... O-O {[%clk 0:02:56]} 8. Nbd2 {[%clk 0:02:58.2]}
8... c6 {[%clk 0:02:53.9]} 9. e4 {[%clk 0:02:52.9]} 9... Re8 {[%clk 0:02:52.9]}
10. Re1 {[%clk 0:02:53]} 10... h6 {[%clk 0:02:53.1]} 11. b3 {[%clk 0:02:44.2]}
11... dxe4 {[%clk 0:02:50.4]} 12. dxe4 {[%clk 0:02:43.5]} 12... Qe7 {[%clk
0:02:50]} 13. a3 {[%clk 0:02:42.9]} 13... Nf8 {[%clk 0:02:44.2]} 14. Bb2 {[%clk
0:02:28.9]} 14... Be6 {[%clk 0:02:39.8]} 15. b4 {[%clk 0:02:26.6]} 15... Bc7
{[%clk 0:02:33.3]} 16. Nh4 {[%clk 0:01:45]} 16... Rad8 {[%clk 0:02:23.4]} 17.
Red1 {[%clk 0:01:43.5]} 17... Rd7 {[%clk 0:02:20.5]} 18. Nf5 {[%clk 0:01:38.2]}
18... Bxf5 {[%clk 0:02:20.2]} 19. exf5 {[%clk 0:01:39.1]} 19... Red8 {[%clk
0:02:20.3]} 20. Nc4 {[%clk 0:01:27.1]} 20... Rxd1+ {[%clk 0:02:09]} 21. Rxd1
{[%clk 0:01:28]} 21... Rxd1+ {[%clk 0:02:09.1]} 22. Qxd1 {[%clk 0:01:28.9]}
22... axb4 {[%clk 0:02:09.5]} 23. cxb4 {[%clk 0:01:27.6]} 23... Qd7 {[%clk
0:02:05.4]} 24. Qxd7 {[%clk 0:01:12.7]} 24... N8xd7 {[%clk 0:02:06.3]} 25. Kf1
{[%clk 0:01:12.8]} 25... Nd5 {[%clk 0:02:04.3]} 26. Ke2 {[%clk 0:01:07.3]} 26...
f6 {[%clk 0:02:00.1]} 27. Kd3 {[%clk 0:01:00.2]} 27... Kf8 {[%clk 0:01:59.9]}
28. h4 {[%clk 0:00:52.8]} 28... Ke7 {[%clk 0:01:55.6]} 29. Nd2 {[%clk
0:00:50.5]} 29... Ke8 {[%clk 0:01:43]} 30. h5 {[%clk 0:00:41.1]} 30... Ne7
{[%clk 0:01:42.8]} 31. Be4 {[%clk 0:00:39.3]} 31... Nb6 {[%clk 0:01:38.1]} 32.
Nb3 {[%clk 0:00:35.6]} 32... Na4 {[%clk 0:01:36.7]} 33. Bc1 {[%clk 0:00:33.3]}
33... Nc8 {[%clk 0:01:35.7]} 34. Nc5 {[%clk 0:00:25.6]} 34... Nxc5+ {[%clk
0:01:32.2]} 35. bxc5 {[%clk 0:00:26.5]} 35... Na7 {[%clk 0:01:24.9]} 36. a4
{[%clk 0:00:26.5]} 36... Nc8 {[%clk 0:01:23]} 37. Bd2 {[%clk 0:00:25.9]} 37...
Kd7 {[%clk 0:01:22.4]} 38. Kc4 {[%clk 0:00:23.4]} 38... Ne7 {[%clk 0:01:22.7]}
39. g4 {[%clk 0:00:15.6]} 39... Ke8 {[%clk 0:01:17.4]} 40. f3 {[%clk 0:00:15.8]}
40... Kd7 {[%clk 0:01:16.9]} 41. Bc2 {[%clk 0:00:12.7]} 41... Nd5 {[%clk
0:01:13.7]} 42. Bb3 {[%clk 0:00:13.3]} 42... Ke7 {[%clk 0:01:07.4]} 43. Kd3
{[%clk 0:00:13.7]} 43... Kd7 {[%clk 0:01:07.5]} 44. Ke4 {[%clk 0:00:14.3]} 44...
Nf4 {[%clk 0:01:03.3]} 45. Bc4 {[%clk 0:00:11.7]} 45... Ke7 {[%clk 0:01:01.4]}
46. a5 {[%clk 0:00:11.8]} 46... Kd7 {[%clk 0:01:01.6]} 47. a6 {[%clk 0:00:11.9]}
47... bxa6 {[%clk 0:01:02.5]} 48. Bxa6 {[%clk 0:00:12.4]} 48... Bb8 {[%clk
0:01:01.4]} 49. Bc4 {[%clk 0:00:09.3]} 49... Bc7 {[%clk 0:01:01.4]} 50. Bb4
{[%clk 0:00:08.3]} 50... Bb8 {[%clk 0:01:00.4]} 51. Ba5 {[%clk 0:00:08.8]} 51...
Bc7 {[%clk 0:00:59.3]} 52. Bc3 {[%clk 0:00:08.6]} 52... Bb8 {[%clk 0:00:56.9]}
53. Bb4 {[%clk 0:00:09]} 53... Bc7 {[%clk 0:00:57]} 54. Ba3 {[%clk 0:00:07.9]}
54... Bb8 {[%clk 0:00:56.5]} 55. Ke3 {[%clk 0:00:08.1]} 55... Bc7 {[%clk
0:00:56]} 56. Kd2 {[%clk 0:00:08.1]} 56... Ba5+ {[%clk 0:00:55.1]} 57. Kc2
{[%clk 0:00:08.5]} 57... Bc7 {[%clk 0:00:54.5]} 58. Bc1 {[%clk 0:00:08.4]} 58...
Ba5 {[%clk 0:00:53.8]} 59. Be3 {[%clk 0:00:08.5]} 59... Bc7 {[%clk 0:00:52.4]}
60. Kb3 {[%clk 0:00:08.3]} 60... Bd8 {[%clk 0:00:52.5]} 61. Ka4 {[%clk
0:00:07.7]} 61... Bc7 {[%clk 0:00:52.9]} 62. Ka3 {[%clk 0:00:05.4]} 62... Bd8
{[%clk 0:00:53.3]} 63. Kb3 {[%clk 0:00:05.5]} 63... Bc7 {[%clk 0:00:53.7]} 64.
Kc2 {[%clk 0:00:05.7]} 64... Bd8 {[%clk 0:00:54.2]} 65. Bd2 {[%clk 0:00:06.4]}
65... Bc7 {[%clk 0:00:54.4]} 66. Bb4 {[%clk 0:00:07.2]} 66... Bd8 {[%clk
0:00:54.4]} 67. Kd2 {[%clk 0:00:07.4]} 67... Bc7 {[%clk 0:00:54.9]} 68. Ke3
{[%clk 0:00:07.8]} 68... Bd8 {[%clk 0:00:55.2]} 69. Ke4 {[%clk 0:00:08.3]} 69...
Bc7 {[%clk 0:00:55.5]} 70. Bd2 {[%clk 0:00:08.5]} 70... Bb8 {[%clk 0:00:53.8]}
71. Ba5 {[%clk 0:00:08.4]} 71... Bc7 {[%clk 0:00:53.6]} 72. Bb6 {[%clk 0:00:08]}
72... Kc8 {[%clk 0:00:52]} 73. Be6+ {[%clk 0:00:06.7]} 73... Kb7 {[%clk
0:00:49.5]} 74. Bxc7 {[%clk 0:00:06.7]} 74... Kxc7 {[%clk 0:00:49.3]} 75. Bc4
{[%clk 0:00:05.8]} 75... Kb7 {[%clk 0:00:48.9]} 76. Ke3 {[%clk 0:00:05.6]} 76...
Kc7 {[%clk 0:00:48.2]} 77. Ke4 {[%clk 0:00:06.1]} 77... Kd7 {[%clk 0:00:48.6]}
78. Bb3 {[%clk 0:00:04.9]} 78... Kc7 {[%clk 0:00:47]} 79. Bc4 {[%clk 0:00:05.4]}
1/2-1/2

[Event "Late-Titled-Tuesday-Blitz-September-05-2023"]
[Site "Chess.com"]
[Date "2023.09.05"]
[Round "2"]
[White "whiteglovethief"]
[Black "BabyFacedAssasin"]
[Result "1-0"]
[WhiteElo "2510"]
[BlackElo "2316"]
[TimeControl "180+1"]
[EndTime "14:18:57 PDT"]
[Termination "whiteglovethief won by resignation"]

1. d4 {[%clk 0:03:00.9]} 1... d6 {[%clk 0:02:58.2]} 2. Nf3 {[%clk 0:02:59.4]}
2... Nd7 {[%clk 0:02:56.3]} 3. g3 {[%clk 0:02:57.4]} 3... e5 {[%clk 0:02:55.5]}
4. Bg2 {[%clk 0:02:58.3]} 4... exd4 {[%clk 0:02:54.6]} 5. Nxd4 {[%clk
0:02:57.9]} 5... Ngf6 {[%clk 0:02:54.9]} 6. O-O {[%clk 0:02:58.4]} 6... g6
{[%clk 0:02:54.8]} 7. Re1 {[%clk 0:02:57.8]} 7... Bg7 {[%clk 0:02:54.7]} 8. e4
{[%clk 0:02:58.3]} 8... O-O {[%clk 0:02:54.7]} 9. Nc3 {[%clk 0:02:58.5]} 9...
Re8 {[%clk 0:02:53.3]} 10. h3 {[%clk 0:02:58.4]} 10... c6 {[%clk 0:02:52.8]} 11.
Bf4 {[%clk 0:02:57.9]} 11... Ne5 {[%clk 0:02:50.8]} 12. Nf3 {[%clk 0:02:54.3]}
12... Nh5 {[%clk 0:02:44.9]} 13. Be3 {[%clk 0:02:42.4]} 13... Nxf3+ {[%clk
0:02:39.4]} 14. Bxf3 {[%clk 0:02:26.6]} 14... Bxc3 {[%clk 0:02:24.6]} 15. bxc3
{[%clk 0:02:25.5]} 15... Nf6 {[%clk 0:02:22.1]} 16. Bg5 {[%clk 0:02:19.8]} 16...
Bxh3 {[%clk 0:02:19.9]} 17. e5 {[%clk 0:02:18.2]} 17... dxe5 {[%clk 0:02:14]}
18. Qxd8 {[%clk 0:02:16.9]} 18... Raxd8 {[%clk 0:02:14.3]} 19. Bxf6 {[%clk
0:02:16.8]} 19... Rd2 {[%clk 0:02:09.6]} 20. Bxe5 {[%clk 0:02:13.2]} 20... Rxc2
{[%clk 0:02:07.5]} 21. Bf6 {[%clk 0:02:11.8]} 21... Be6 {[%clk 0:01:58.7]} 22.
Rab1 {[%clk 0:01:55]} 22... Rxa2 {[%clk 0:01:44.7]} 23. Rxb7 {[%clk 0:01:52.1]}
23... Rc8 {[%clk 0:01:40.8]} 24. Bxc6 {[%clk 0:01:47.5]} 24... Ra6 {[%clk
0:01:19.2]} 25. Bd7 {[%clk 0:01:43.1]} 25... Bxd7 {[%clk 0:01:12.7]} 26. Bd4
{[%clk 0:01:34.1]} 26... Be6 {[%clk 0:01:10.2]} 27. Bxa7 {[%clk 0:01:31.3]}
27... Rac6 {[%clk 0:01:01.6]} 28. Bd4 {[%clk 0:01:30.8]} 28... h6 {[%clk
0:00:57.9]} 29. Re5 {[%clk 0:01:22.1]} 29... Kh7 {[%clk 0:00:57.5]} 30. Ra5
{[%clk 0:01:16.8]} 30... g5 {[%clk 0:00:55.7]} 31. Kg2 {[%clk 0:01:07.9]} 31...
Kg6 {[%clk 0:00:54.9]} 32. f3 {[%clk 0:01:03.3]} 32... Rd6 {[%clk 0:00:45.9]}
33. Kf2 {[%clk 0:01:01.1]} 33... Rd7 {[%clk 0:00:44.1]} 34. Rb6 {[%clk
0:00:59.2]} 34... Re8 {[%clk 0:00:38.1]} 35. f4 {[%clk 0:00:59.2]} 35... gxf4
{[%clk 0:00:36.2]} 36. gxf4 {[%clk 0:01:00.1]} 36... Kh7 {[%clk 0:00:32.1]} 37.
Rh5 {[%clk 0:00:57.6]} 37... Rd5 {[%clk 0:00:28.8]} 38. Rh4 {[%clk 0:00:45.6]}
38... h5 {[%clk 0:00:27.5]} 39. Rc6 {[%clk 0:00:44.6]} 39... Bg4 {[%clk
0:00:24]} 40. Be5 {[%clk 0:00:42.9]} 40... Re6 {[%clk 0:00:23.3]} 41. Rc7 {[%clk
0:00:36.8]} 41... Kg6 {[%clk 0:00:22.7]} 42. Ke3 {[%clk 0:00:35.7]} 42... f6
{[%clk 0:00:22.4]} 43. Ke4 {[%clk 0:00:35.9]} 43... Rd1 {[%clk 0:00:17.7]} 44.
Rxg4+ {[%clk 0:00:36.3]} 44... hxg4 {[%clk 0:00:17.3]} 45. f5+ {[%clk
0:00:36.8]} 45... Kg5 {[%clk 0:00:17]} 46. fxe6 {[%clk 0:00:36]} 46... Re1+
{[%clk 0:00:17]} 47. Kd4 {[%clk 0:00:35.2]} 47... Rxe5 {[%clk 0:00:17.5]} 48. e7
{[%clk 0:00:29.6]} 48... g3 {[%clk 0:00:14.9]} 49. Rc5 {[%clk 0:00:28.9]} 49...
g2 {[%clk 0:00:11.9]} 50. Rxe5+ {[%clk 0:00:27.9]} 50... fxe5+ {[%clk
0:00:12.8]} 51. Kd5 {[%clk 0:00:27.7]} 51... g1=Q {[%clk 0:00:12.7]} 52. e8=Q
{[%clk 0:00:27.7]} 52... Qd1+ {[%clk 0:00:12]} 53. Kc4 {[%clk 0:00:23.7]} 53...
Qe2+ {[%clk 0:00:12.2]} 54. Kb3 {[%clk 0:00:22.9]} 54... Kf4 {[%clk 0:00:13.1]}
55. c4 {[%clk 0:00:20.2]} 55... Qd3+ {[%clk 0:00:12]} 56. Kb4 {[%clk 0:00:20.6]}
56... e4 {[%clk 0:00:12.9]} 57. Qf7+ {[%clk 0:00:19.9]} 57... Ke3 {[%clk
0:00:13.5]} 58. c5 {[%clk 0:00:18.7]} 58... Qd4+ {[%clk 0:00:12.3]} 59. Kb5
{[%clk 0:00:18.7]} 59... Kd3 {[%clk 0:00:12.8]} 60. Qb3+ {[%clk 0:00:17.5]}
60... Qc3 {[%clk 0:00:11.4]} 61. Qxc3+ {[%clk 0:00:15.1]} 61... Kxc3 {[%clk
0:00:11.9]} 62. c6 {[%clk 0:00:15.9]} 62... e3 {[%clk 0:00:12.4]} 63. c7 {[%clk
0:00:16.7]} 63... e2 {[%clk 0:00:12.8]} 64. c8=Q+ {[%clk 0:00:17.6]} 64... Kd2
{[%clk 0:00:13]} 65. Qd7+ {[%clk 0:00:17.9]} 65... Kc2 {[%clk 0:00:13.4]} 66.
Qc6+ {[%clk 0:00:17.9]} 66... Kd2 {[%clk 0:00:13.8]} 67. Qd5+ {[%clk 0:00:18.2]}
67... Kc2 {[%clk 0:00:14.4]} 68. Qc4+ {[%clk 0:00:18.2]} 68... Kd2 {[%clk
0:00:15.1]} 69. Qd4+ {[%clk 0:00:18.3]} 69... Kc2 {[%clk 0:00:15.7]} 70. Qe3
{[%clk 0:00:17.8]} 70... Kd1 {[%clk 0:00:16.3]} 71. Qd3+ {[%clk 0:00:18.2]}
71... Ke1 {[%clk 0:00:16.8]} 72. Kc4 {[%clk 0:00:18.5]} 72... Kf2 {[%clk
0:00:17.4]} 73. Qf5+ {[%clk 0:00:18.2]} 73... Ke1 {[%clk 0:00:17.9]} 74. Kd3
{[%clk 0:00:17.7]} 74... Kd1 {[%clk 0:00:18.6]} 75. Qf3 {[%clk 0:00:17.7]} 75...
Kc1 {[%clk 0:00:18.8]} 76. Qxe2 {[%clk 0:00:17.7]} 1-0

[Event "Late-Titled-Tuesday-Blitz-September-05-2023"]
[Site "Chess.com"]
[Date "2023.09.05"]
[Round "2"]
[White "Ducke13"]
[Black "Korchmar_Vasiliy"]
[Result "1-0"]
[WhiteElo "2476"]
[BlackElo "2703"]
[TimeControl "180+1"]
[EndTime "14:19:00 PDT"]
[Termination "Ducke13 won on time"]

1. d4 {[%clk 0:02:53.1]} 1... d5 {[%clk 0:02:59.2]} 2. g3 {[%clk 0:02:52.5]}
2... Nf6 {[%clk 0:02:58.3]} 3. Nf3 {[%clk 0:02:51.3]} 3... Bf5 {[%clk
0:02:58.7]} 4. c4 {[%clk 0:02:51.7]} 4... e6 {[%clk 0:02:58.6]} 5. Nc3 {[%clk
0:02:52.3]} 5... c6 {[%clk 0:02:58.7]} 6. Nh4 {[%clk 0:02:52.4]} 6... Be4 {[%clk
0:02:57.7]} 7. f3 {[%clk 0:02:52.2]} 7... Bg6 {[%clk 0:02:58]} 8. Qb3 {[%clk
0:02:52.1]} 8... Qb6 {[%clk 0:02:48.9]} 9. Nxg6 {[%clk 0:02:42.7]} 9... hxg6
{[%clk 0:02:48.6]} 10. c5 {[%clk 0:02:43.3]} 10... Qxb3 {[%clk 0:02:47.1]} 11.
axb3 {[%clk 0:02:44.2]} 11... Nbd7 {[%clk 0:02:45.4]} 12. b4 {[%clk 0:02:43.4]}
12... Be7 {[%clk 0:02:24.1]} 13. b5 {[%clk 0:02:39.7]} 13... O-O {[%clk
0:02:20.1]} 14. e3 {[%clk 0:02:28.9]} 14... e5 {[%clk 0:02:20.3]} 15. Be2 {[%clk
0:02:26.4]} 15... Rfe8 {[%clk 0:02:12.9]} 16. bxc6 {[%clk 0:02:24.7]} 16... bxc6
{[%clk 0:02:12.9]} 17. Ra6 {[%clk 0:02:24.6]} 17... Nb8 {[%clk 0:01:59.1]} 18.
Ra4 {[%clk 0:02:23.9]} 18... Nbd7 {[%clk 0:01:58.3]} 19. b4 {[%clk 0:02:00.5]}
19... exd4 {[%clk 0:01:32.7]} 20. exd4 {[%clk 0:02:01.4]} 20... Nf8 {[%clk
0:01:32.9]} 21. Kf2 {[%clk 0:01:49.6]} 21... Ne6 {[%clk 0:01:32.8]} 22. Be3
{[%clk 0:01:49.4]} 22... Reb8 {[%clk 0:01:18.2]} 23. Rha1 {[%clk 0:01:47.8]}
23... Bf8 {[%clk 0:01:12.5]} 24. b5 {[%clk 0:01:45.4]} 24... cxb5 {[%clk
0:01:11.9]} 25. Bxb5 {[%clk 0:01:36.2]} 25... a5 {[%clk 0:00:59.1]} 26. Rxa5
{[%clk 0:01:23.7]} 26... Rxa5 {[%clk 0:01:00]} 27. Rxa5 {[%clk 0:01:23.8]} 27...
Bxc5 {[%clk 0:01:00.7]} 28. dxc5 {[%clk 0:01:08.7]} 28... d4 {[%clk 0:01:01.6]}
29. c6 {[%clk 0:00:32.3]} 29... dxc3 {[%clk 0:00:56.6]} 30. Ke2 {[%clk
0:00:26.1]} 30... Nd5 {[%clk 0:00:49]} 31. Ba7 {[%clk 0:00:17.1]} 31... Ra8
{[%clk 0:00:40.5]} 32. Kd3 {[%clk 0:00:07.9]} 32... Nec7 {[%clk 0:00:41]} 33.
Bc4 {[%clk 0:00:07.2]} 33... Ne7 {[%clk 0:00:38.7]} 34. Bb6 {[%clk 0:00:05]}
34... Rc8 {[%clk 0:00:28.2]} 35. Kxc3 {[%clk 0:00:04.8]} 35... Nxc6 {[%clk
0:00:27.6]} 36. Rc5 {[%clk 0:00:03.9]} 36... Ne6 {[%clk 0:00:14.6]} 37. Bxe6
{[%clk 0:00:04.1]} 37... fxe6 {[%clk 0:00:15.5]} 38. Kc4 {[%clk 0:00:04.2]}
38... Ne5+ {[%clk 0:00:14.5]} 39. Kb5 {[%clk 0:00:04.6]} 39... Rxc5+ {[%clk
0:00:14.8]} 40. Bxc5 {[%clk 0:00:05.3]} 40... Nxf3 {[%clk 0:00:15.7]} 41. Kc6
{[%clk 0:00:05.6]} 41... Kf7 {[%clk 0:00:15.6]} 42. h3 {[%clk 0:00:05.2]} 42...
Kf6 {[%clk 0:00:13.3]} 43. Kd6 {[%clk 0:00:05]} 43... Kf5 {[%clk 0:00:09.9]} 44.
Be3 {[%clk 0:00:05.5]} 44... e5 {[%clk 0:00:08.4]} 45. Bf2 {[%clk 0:00:05.5]}
45... e4 {[%clk 0:00:04.9]} 46. Ke7 {[%clk 0:00:05.5]} 46... Ne5 {[%clk
0:00:03]} 47. Kf8 {[%clk 0:00:04.9]} 47... Kf6 {[%clk 0:00:03.6]} 48. Bd4 {[%clk
0:00:04.5]} 48... Ke6 {[%clk 0:00:03.6]} 49. Kxg7 {[%clk 0:00:04.4]} 49... Nc6
{[%clk 0:00:03.3]} 50. Be3 {[%clk 0:00:04.4]} 50... Kf5 {[%clk 0:00:03.7]} 51.
g4+ {[%clk 0:00:04.9]} 51... Ke6 {[%clk 0:00:03.8]} 52. Kxg6 {[%clk 0:00:05.8]}
52... Ne5+ {[%clk 0:00:04.5]} 53. Kg5 {[%clk 0:00:05.5]} 53... Nc4 {[%clk
0:00:05.4]} 54. Kf4 {[%clk 0:00:05.6]} 54... Kd5 {[%clk 0:00:06]} 55. h4 {[%clk
0:00:05.6]} 55... Ne5 {[%clk 0:00:06.9]} 56. h5 {[%clk 0:00:05.9]} 56... Nd3+
{[%clk 0:00:06]} 57. Kf5 {[%clk 0:00:06.1]} 57... Ne5 {[%clk 0:00:05.3]} 58. g5
{[%clk 0:00:05.9]} 58... Nf7 {[%clk 0:00:04.8]} 59. g6 {[%clk 0:00:05.7]} 59...
Nd6+ {[%clk 0:00:03.3]} 60. Kf6 {[%clk 0:00:05.9]} 60... Nc4 {[%clk 0:00:02.7]}
61. Bf4 {[%clk 0:00:05.8]} 1-0